[Event "Early-Titled-Tuesday-Blitz-March-19-2024"]
[Site "Chess.com"]
[Date "2024.03.19"]
[Round "11"]
[White "francyIM"]
[Black "Kacparov"]
[Result "1-0"]
[WhiteElo "2840"]
[BlackElo "2909"]
[TimeControl "180+1"]
[EndTime "10:05:39 PDT"]
[Termination "francyIM won by resignation"]

1. Nf3 {[%clk 0:03:00.9]} 1... d5 {[%clk 0:02:58.7]} 2. e3 {[%clk 0:02:59.6]}
2... c6 {[%clk 0:02:58.7]} 3. c4 {[%clk 0:02:58.1]} 3... Nf6 {[%clk 0:02:58.7]}
4. b3 {[%clk 0:02:55.7]} 4... Bg4 {[%clk 0:02:58.5]} 5. Bb2 {[%clk 0:02:53.4]}
5... e6 {[%clk 0:02:58.8]} 6. Qc2 {[%clk 0:02:51.5]} 6... Nbd7 {[%clk
0:02:58.8]} 7. Nh4 {[%clk 0:02:51.2]} 7... Bh5 {[%clk 0:02:54.3]} 8. h3 {[%clk
0:02:49.9]} 8... Ne4 {[%clk 0:02:49.5]} 9. Nf3 {[%clk 0:02:46.7]} 9... Bg6
{[%clk 0:02:46.1]} 10. d3 {[%clk 0:02:46.8]} 10... Bb4+ {[%clk 0:02:44.7]} 11.
Nbd2 {[%clk 0:02:47.1]} 11... Nxd2 {[%clk 0:02:38.3]} 12. Nxd2 {[%clk
0:02:46.8]} 12... dxc4 {[%clk 0:02:37.8]} 13. Qxc4 {[%clk 0:02:38.4]} 13...
Bxd2+ {[%clk 0:02:02.4]} 14. Kxd2 {[%clk 0:02:39.3]} 14... e5 {[%clk 0:02:02.3]}
15. Be2 {[%clk 0:02:33.6]} 15... Qe7 {[%clk 0:01:58.6]} 16. Rhd1 {[%clk
0:02:27.5]} 16... Rd8 {[%clk 0:01:54.4]} 17. Ke1 {[%clk 0:02:24.8]} 17... Nb6
{[%clk 0:01:54.2]} 18. Qc3 {[%clk 0:02:24.2]} 18... f6 {[%clk 0:01:52.4]} 19.
Kf1 {[%clk 0:02:24]} 19... Nd5 {[%clk 0:01:51.9]} 20. Qc4 {[%clk 0:02:23.2]}
20... Nb6 {[%clk 0:01:51.4]} 21. Qc3 {[%clk 0:02:20.6]} 21... Nd5 {[%clk
0:01:50.8]} 22. Qa5 {[%clk 0:02:20.7]} 22... b6 {[%clk 0:01:41]} 23. Qd2 {[%clk
0:02:14.2]} 23... O-O {[%clk 0:01:38.6]} 24. a3 {[%clk 0:02:11.8]} 24... c5
{[%clk 0:01:38.9]} 25. Qc2 {[%clk 0:02:08.4]} 25... f5 {[%clk 0:01:34.6]} 26.
Kg1 {[%clk 0:02:08.5]} 26... f4 {[%clk 0:01:34.7]} 27. e4 {[%clk 0:02:04.3]}
27... f3 {[%clk 0:01:26.9]} 28. Bxf3 {[%clk 0:02:00.9]} 28... Rxf3 {[%clk
0:01:24.2]} 29. exd5 {[%clk 0:01:57.4]} 29... Rff8 {[%clk 0:01:14.7]} 30. Qc4
{[%clk 0:01:52.3]} 30... Bf7 {[%clk 0:01:12.4]} 31. Qe4 {[%clk 0:01:50.6]} 31...
Rxd5 {[%clk 0:01:05.2]} 32. Re1 {[%clk 0:01:50.4]} 32... Rfd8 {[%clk 0:01:03.7]}
33. Bxe5 {[%clk 0:01:46.7]} 33... R5d6 {[%clk 0:00:53.8]} 34. Bxd6 {[%clk
0:01:39.9]} 34... Qxd6 {[%clk 0:00:52.3]} 35. Qe7 {[%clk 0:01:39]} 35... Qxd3
{[%clk 0:00:50.7]} 36. Rad1 {[%clk 0:01:33.3]} 36... Qxd1 {[%clk 0:00:49.8]} 37.
Rxd1 {[%clk 0:01:34.2]} 37... Rxd1+ {[%clk 0:00:50.2]} 38. Kh2 {[%clk
0:01:34.9]} 38... h6 {[%clk 0:00:35.7]} 39. Qxa7 {[%clk 0:01:34.2]} 39... Bxb3
{[%clk 0:00:30.9]} 40. Qxb6 {[%clk 0:01:14.5]} 40... c4 {[%clk 0:00:31]} 41.
Qe6+ {[%clk 0:01:09.1]} 41... Kh7 {[%clk 0:00:28.5]} 42. a4 {[%clk 0:01:09.5]}
42... Ra1 {[%clk 0:00:26.7]} 43. Qf5+ {[%clk 0:01:07.2]} 43... Kg8 {[%clk
0:00:23.9]} 44. a5 {[%clk 0:01:05.6]} 44... Ra2 {[%clk 0:00:21.1]} 45. a6 {[%clk
0:01:01.9]} 1-0

[Event "Early-Titled-Tuesday-Blitz-March-19-2024"]
[Site "Chess.com"]
[Date "2024.03.19"]
[Round "11"]
[White "secrethawk1"]
[Black "carloseduar100"]
[Result "1-0"]
[WhiteElo "2425"]
[BlackElo "2255"]
[TimeControl "180+1"]
[EndTime "10:05:43 PDT"]
[Termination "secrethawk1 won by checkmate"]

1. e4 {[%clk 0:03:00.9]} 1... e6 {[%clk 0:02:59.6]} 2. d4 {[%clk 0:03:00.4]}
2... d5 {[%clk 0:03:00.5]} 3. Nc3 {[%clk 0:03:00]} 3... Nf6 {[%clk 0:02:59.9]}
4. Bg5 {[%clk 0:02:59]} 4... Be7 {[%clk 0:02:59.2]} 5. e5 {[%clk 0:02:56.7]}
5... Nfd7 {[%clk 0:02:59.5]} 6. Bxe7 {[%clk 0:02:55.3]} 6... Qxe7 {[%clk
0:03:00.4]} 7. f4 {[%clk 0:02:53.7]} 7... O-O {[%clk 0:03:00.5]} 8. Nf3 {[%clk
0:02:50.1]} 8... c5 {[%clk 0:03:01]} 9. Bd3 {[%clk 0:02:47]} 9... f5 {[%clk
0:02:58.4]} 10. dxc5 {[%clk 0:02:46.3]} 10... Nxc5 {[%clk 0:02:57.9]} 11. O-O
{[%clk 0:02:45.4]} 11... Nc6 {[%clk 0:02:56.2]} 12. Ne2 {[%clk 0:02:32.9]} 12...
Ne4 {[%clk 0:02:56.4]} 13. c3 {[%clk 0:02:31.1]} 13... a6 {[%clk 0:02:50.7]} 14.
Nfd4 {[%clk 0:02:24.5]} 14... Qc5 {[%clk 0:02:45.8]} 15. Rc1 {[%clk 0:02:08.7]}
15... b5 {[%clk 0:02:43]} 16. Bxe4 {[%clk 0:02:03.4]} 16... dxe4 {[%clk
0:02:40.1]} 17. Qd2 {[%clk 0:02:00.7]} 17... Rd8 {[%clk 0:02:39.9]} 18. Qe3
{[%clk 0:01:55.5]} 18... Nxd4 {[%clk 0:02:34]} 19. Nxd4 {[%clk 0:01:53.3]} 19...
g6 {[%clk 0:02:16.2]} 20. Rfd1 {[%clk 0:01:49.8]} 20... Rd5 {[%clk 0:02:07.8]}
21. Kf2 {[%clk 0:01:42.9]} 21... Kf7 {[%clk 0:02:03]} 22. b4 {[%clk 0:01:34.2]}
22... Qc4 {[%clk 0:02:01.2]} 23. Nb3 {[%clk 0:01:31.1]} 23... Bb7 {[%clk
0:01:51.9]} 24. Rd2 {[%clk 0:01:24.1]} 24... Rad8 {[%clk 0:01:51.5]} 25. Rcd1
{[%clk 0:01:15.4]} 25... Rxd2+ {[%clk 0:01:51]} 26. Rxd2 {[%clk 0:01:14.2]}
26... Rxd2+ {[%clk 0:01:51.2]} 27. Qxd2 {[%clk 0:01:15.1]} 27... Bd5 {[%clk
0:01:51.6]} 28. Qe3 {[%clk 0:01:12.6]} 28... Kg7 {[%clk 0:01:22.3]} 29. h4
{[%clk 0:01:04.8]} 29... h5 {[%clk 0:01:19.2]} 30. Nc1 {[%clk 0:00:32]} 30...
Kh6 {[%clk 0:01:10.9]} 31. a3 {[%clk 0:00:26.8]} 31... a5 {[%clk 0:01:08.7]} 32.
Ne2 {[%clk 0:00:24.8]} 32... Qa2 {[%clk 0:01:03.8]} 33. bxa5 {[%clk 0:00:20.5]}
33... Qxa3 {[%clk 0:01:02.3]} 34. Qb6 {[%clk 0:00:12.3]} 34... Bc4 {[%clk
0:01:00.7]} 35. Qd8 {[%clk 0:00:08.2]} 35... Bxe2 {[%clk 0:00:46.7]} 36. Qh8#
{[%clk 0:00:05.8]} 1-0

[Event "Early-Titled-Tuesday-Blitz-March-19-2024"]
[Site "Chess.com"]
[Date "2024.03.19"]
[Round "11"]
[White "XDPS"]
[Black "KNVB"]
[Result "1-0"]
[WhiteElo "2918"]
[BlackElo "2819"]
[TimeControl "180+1"]
[EndTime "10:05:44 PDT"]
[Termination "XDPS won by resignation"]

1. d4 {[%clk 0:03:00.9]} 1... Nf6 {[%clk 0:03:00]} 2. Bf4 {[%clk 0:03:00.9]}
2... d5 {[%clk 0:02:59.6]} 3. e3 {[%clk 0:03:01.5]} 3... c5 {[%clk 0:02:49.9]}
4. Nf3 {[%clk 0:02:59.7]} 4... Nc6 {[%clk 0:02:43.9]} 5. Nbd2 {[%clk 0:02:59.4]}
5... Bg4 {[%clk 0:02:40]} 6. c3 {[%clk 0:02:58.8]} 6... Qb6 {[%clk 0:02:28.7]}
7. Qb3 {[%clk 0:02:43]} 7... e6 {[%clk 0:02:09.8]} 8. Ne5 {[%clk 0:02:33.7]}
8... c4 {[%clk 0:01:52.4]} 9. Qa4 {[%clk 0:02:30.8]} 9... Qa5 {[%clk 0:01:25.7]}
10. Qxa5 {[%clk 0:02:27.8]} 10... Nxa5 {[%clk 0:01:26.6]} 11. Nxg4 {[%clk
0:02:27.6]} 11... Nxg4 {[%clk 0:01:27.5]} 12. b3 {[%clk 0:02:06.9]} 12... cxb3
{[%clk 0:01:11.4]} 13. axb3 {[%clk 0:02:06.4]} 13... Nc6 {[%clk 0:01:12]} 14. b4
{[%clk 0:02:04.5]} 14... Nf6 {[%clk 0:00:37.3]} 15. Be2 {[%clk 0:01:50.4]} 15...
Kd7 {[%clk 0:00:28.6]} 16. Nb3 {[%clk 0:01:23]} 16... b6 {[%clk 0:00:19.9]} 17.
Ba6 {[%clk 0:01:07.9]} 17... Bd6 {[%clk 0:00:04.5]} 18. Bb7 {[%clk 0:00:56.5]}
18... Rab8 {[%clk 0:00:04.8]} 19. Bxc6+ {[%clk 0:00:50.2]} 19... Kxc6 {[%clk
0:00:05.7]} 20. b5+ {[%clk 0:00:45.6]} 20... Kxb5 {[%clk 0:00:02.7]} 21. Bxd6
{[%clk 0:00:45.1]} 21... Rb7 {[%clk 0:00:02.5]} 22. Nd2 {[%clk 0:00:42.4]} 22...
Kc6 {[%clk 0:00:02.1]} 23. Be5 {[%clk 0:00:35.3]} 23... Nd7 {[%clk 0:00:02.4]}
24. Bg3 {[%clk 0:00:33.5]} 24... b5 {[%clk 0:00:01.6]} 25. Ke2 {[%clk
0:00:31.8]} 25... Kb6 {[%clk 0:00:01.4]} 26. Nb3 {[%clk 0:00:30.6]} 26... a6
{[%clk 0:00:01.5]} 27. Bd6 {[%clk 0:00:30.3]} 27... Rc8 {[%clk 0:00:01.5]} 28.
Nc5 {[%clk 0:00:31]} 28... Nxc5 {[%clk 0:00:01.6]} 29. Bxc5+ {[%clk 0:00:31.6]}
29... Rxc5 {[%clk 0:00:01.7]} 30. dxc5+ {[%clk 0:00:32.5]} 1-0

[Event "Early-Titled-Tuesday-Blitz-March-19-2024"]
[Site "Chess.com"]
[Date "2024.03.19"]
[Round "11"]
[White "Adar_07"]
[Black "PLAYER_2006_M"]
[Result "1-0"]
[WhiteElo "2853"]
[BlackElo "2927"]
[TimeControl "180+1"]
[EndTime "10:05:46 PDT"]
[Termination "Adar_07 won by resignation"]

1. Nf3 {[%clk 0:03:00.9]} 1... e6 {[%clk 0:02:55.4]} 2. e4 {[%clk 0:02:58.5]}
2... d5 {[%clk 0:02:54.4]} 3. exd5 {[%clk 0:02:59.4]} 3... exd5 {[%clk
0:02:53.8]} 4. d4 {[%clk 0:03:00.3]} 4... Nc6 {[%clk 0:02:54.2]} 5. c3 {[%clk
0:02:55.2]} 5... Bd6 {[%clk 0:02:54]} 6. Bd3 {[%clk 0:02:55.1]} 6... Nge7 {[%clk
0:02:54.7]} 7. O-O {[%clk 0:02:55.2]} 7... O-O {[%clk 0:02:52.3]} 8. Re1 {[%clk
0:02:55.3]} 8... Bf5 {[%clk 0:02:52.1]} 9. Bg5 {[%clk 0:02:53.1]} 9... f6 {[%clk
0:02:50.9]} 10. Bh4 {[%clk 0:02:53.4]} 10... Kh8 {[%clk 0:02:46.2]} 11. Bg3
{[%clk 0:02:49.4]} 11... Qd7 {[%clk 0:02:44.8]} 12. b4 {[%clk 0:02:42.4]} 12...
a6 {[%clk 0:02:39.1]} 13. a4 {[%clk 0:02:38.2]} 13... Bxd3 {[%clk 0:02:20.1]}
14. Qxd3 {[%clk 0:02:39.1]} 14... Qf5 {[%clk 0:02:20.4]} 15. Qe2 {[%clk
0:02:21.6]} 15... Ng6 {[%clk 0:02:20.3]} 16. Bxd6 {[%clk 0:02:21.2]} 16... cxd6
{[%clk 0:02:21.2]} 17. g3 {[%clk 0:02:14.5]} 17... Nce7 {[%clk 0:02:16.2]} 18.
Nbd2 {[%clk 0:01:58.2]} 18... Rac8 {[%clk 0:02:15]} 19. Rac1 {[%clk 0:01:55.9]}
19... Rc7 {[%clk 0:02:15.3]} 20. c4 {[%clk 0:01:52.7]} 20... dxc4 {[%clk
0:02:10.8]} 21. Nxc4 {[%clk 0:01:53.3]} 21... Qd7 {[%clk 0:01:50.1]} 22. Nb6
{[%clk 0:01:45.5]} 22... Qd8 {[%clk 0:01:50]} 23. a5 {[%clk 0:01:40.9]} 23...
Rxc1 {[%clk 0:01:45.1]} 24. Rxc1 {[%clk 0:01:40.7]} 24... Nc6 {[%clk 0:01:46]}
25. d5 {[%clk 0:01:35.6]} 25... Nxb4 {[%clk 0:01:15.1]} 26. Qc4 {[%clk
0:01:18.8]} 26... Qe7 {[%clk 0:00:52.9]} 27. Qxb4 {[%clk 0:01:17.1]} 27... f5
{[%clk 0:00:51.4]} 28. Re1 {[%clk 0:01:13.8]} 28... Qc7 {[%clk 0:00:48.1]} 29.
Nd4 {[%clk 0:01:10.4]} 29... Qf7 {[%clk 0:00:38]} 30. Qxd6 {[%clk 0:01:08.9]}
30... f4 {[%clk 0:00:38.1]} 31. g4 {[%clk 0:00:59.8]} 31... Nh4 {[%clk 0:00:28]}
32. Re7 {[%clk 0:00:56.5]} 32... Re8 {[%clk 0:00:22.1]} 33. Rxe8+ {[%clk
0:00:53.7]} 33... Qxe8 {[%clk 0:00:23]} 34. Qe6 {[%clk 0:00:51.8]} 34... Qf8
{[%clk 0:00:16.5]} 35. d6 {[%clk 0:00:45.6]} 1-0

[Event "Early-Titled-Tuesday-Blitz-March-19-2024"]
[Site "Chess.com"]
[Date "2024.03.19"]
[Round "11"]
[White "BardArtem"]
[Black "Alexei_Gubajdullin"]
[Result "1-0"]
[WhiteElo "2821"]
[BlackElo "2656"]
[TimeControl "180+1"]
[EndTime "10:05:47 PDT"]
[Termination "BardArtem won by resignation"]

1. e4 {[%clk 0:03:00.9]} 1... e5 {[%clk 0:02:55.7]} 2. Nf3 {[%clk 0:02:58.9]}
2... Nf6 {[%clk 0:02:55.5]} 3. Nc3 {[%clk 0:02:50.4]} 3... Bb4 {[%clk 0:02:54]}
4. d3 {[%clk 0:02:47.7]} 4... O-O {[%clk 0:02:51.9]} 5. Bd2 {[%clk 0:02:44.7]}
5... Re8 {[%clk 0:02:49.5]} 6. Be2 {[%clk 0:02:43.3]} 6... d5 {[%clk 0:02:48]}
7. O-O {[%clk 0:02:42.7]} 7... d4 {[%clk 0:02:42.8]} 8. Nb1 {[%clk 0:02:40.5]}
8... Bxd2 {[%clk 0:02:41.9]} 9. Nbxd2 {[%clk 0:02:41.4]} 9... c5 {[%clk
0:02:39.8]} 10. c3 {[%clk 0:02:38]} 10... Nc6 {[%clk 0:02:39.3]} 11. Re1 {[%clk
0:02:35.9]} 11... Nh5 {[%clk 0:02:24.4]} 12. Nxd4 {[%clk 0:02:19.7]} 12... exd4
{[%clk 0:02:16.7]} 13. Bxh5 {[%clk 0:02:18.3]} 13... dxc3 {[%clk 0:02:16.3]} 14.
bxc3 {[%clk 0:02:19.2]} 14... Qxd3 {[%clk 0:02:15.7]} 15. Re3 {[%clk 0:02:10.5]}
15... Qd6 {[%clk 0:02:10.6]} 16. Nc4 {[%clk 0:02:09.2]} 16... Qe7 {[%clk
0:01:55.4]} 17. e5 {[%clk 0:01:51.2]} 17... Be6 {[%clk 0:01:53.2]} 18. Nd6
{[%clk 0:01:49.4]} 18... Red8 {[%clk 0:01:52.8]} 19. f4 {[%clk 0:01:48.1]} 19...
f6 {[%clk 0:01:42.1]} 20. Qe2 {[%clk 0:01:30.8]} 20... fxe5 {[%clk 0:01:41.4]}
21. fxe5 {[%clk 0:01:31.7]} 21... Rf8 {[%clk 0:01:25.8]} 22. Bf3 {[%clk
0:01:27.3]} 22... Na5 {[%clk 0:00:57.9]} 23. Rb1 {[%clk 0:01:13.3]} 23... Rab8
{[%clk 0:00:54.8]} 24. Be4 {[%clk 0:01:07.1]} 24... b6 {[%clk 0:00:36.4]} 25. c4
{[%clk 0:01:03.5]} 25... g6 {[%clk 0:00:35.3]} 26. Rg3 {[%clk 0:00:55.8]} 26...
Qg7 {[%clk 0:00:21.4]} 27. Bd5 {[%clk 0:00:51]} 27... Qe7 {[%clk 0:00:13.6]} 28.
Qe4 {[%clk 0:00:42.7]} 28... Kg7 {[%clk 0:00:13.3]} 29. h4 {[%clk 0:00:41]}
29... Bf5 {[%clk 0:00:12]} 30. Nxf5+ {[%clk 0:00:40.5]} 30... Rxf5 {[%clk
0:00:12]} 31. Qxf5 {[%clk 0:00:40.3]} 31... Qxh4 {[%clk 0:00:10.8]} 32. Qf6+
{[%clk 0:00:40]} 32... Qxf6 {[%clk 0:00:10.6]} 33. exf6+ {[%clk 0:00:40.9]}
33... Kxf6 {[%clk 0:00:10.3]} 34. Rf1+ {[%clk 0:00:41.8]} 34... Kg7 {[%clk
0:00:09.6]} 35. Rf7+ {[%clk 0:00:41.6]} 1-0

[Event "Early-Titled-Tuesday-Blitz-March-19-2024"]
[Site "Chess.com"]
[Date "2024.03.19"]
[Round "11"]
[White "rhungaski"]
[Black "Flaccidmoves"]
[Result "1-0"]
[WhiteElo "2599"]
[BlackElo "2441"]
[TimeControl "180+1"]
[EndTime "10:05:51 PDT"]
[Termination "rhungaski won by checkmate"]

1. e4 {[%clk 0:03:00.9]} 1... e5 {[%clk 0:02:59.7]} 2. Nf3 {[%clk 0:02:58.7]}
2... Nc6 {[%clk 0:03:00.2]} 3. d4 {[%clk 0:02:58.6]} 3... exd4 {[%clk 0:03:00]}
4. Nxd4 {[%clk 0:02:59.5]} 4... Nf6 {[%clk 0:03:00.2]} 5. Nc3 {[%clk 0:02:58.8]}
5... Bb4 {[%clk 0:02:59.3]} 6. Nxc6 {[%clk 0:02:58.6]} 6... bxc6 {[%clk
0:02:59.1]} 7. Bd3 {[%clk 0:02:59.1]} 7... O-O {[%clk 0:02:58.8]} 8. O-O {[%clk
0:02:58.9]} 8... d5 {[%clk 0:02:58.7]} 9. Bd2 {[%clk 0:02:59.2]} 9... Bxc3
{[%clk 0:02:46.2]} 10. Bxc3 {[%clk 0:03:00.1]} 10... dxe4 {[%clk 0:02:46.4]} 11.
Bc4 {[%clk 0:02:58.4]} 11... Be6 {[%clk 0:02:34.5]} 12. Bxe6 {[%clk 0:02:52]}
12... fxe6 {[%clk 0:02:35.4]} 13. Qe2 {[%clk 0:02:47.4]} 13... Qd5 {[%clk
0:02:14.8]} 14. b3 {[%clk 0:02:30.9]} 14... Rad8 {[%clk 0:01:50.9]} 15. a4
{[%clk 0:02:26.2]} 15... Qf5 {[%clk 0:01:47.1]} 16. Rae1 {[%clk 0:01:39.2]}
16... Rd5 {[%clk 0:01:18.6]} 17. f3 {[%clk 0:01:24.1]} 17... e3 {[%clk
0:01:03.2]} 18. Qxe3 {[%clk 0:01:11.3]} 18... Qxc2 {[%clk 0:01:02.6]} 19. Qxe6+
{[%clk 0:01:10.2]} 19... Kh8 {[%clk 0:00:49.4]} 20. Bxf6 {[%clk 0:01:06.1]}
20... gxf6 {[%clk 0:00:48.9]} 21. Rc1 {[%clk 0:00:44]} 21... Qxb3 {[%clk
0:00:39.1]} 22. Rxc6 {[%clk 0:00:42.3]} 22... Qd3 {[%clk 0:00:06.2]} 23. Rxc7
{[%clk 0:00:29.1]} 23... Qd4+ {[%clk 0:00:06.7]} 24. Kh1 {[%clk 0:00:26.6]}
24... Qf2 {[%clk 0:00:07.1]} 25. Rcc1 {[%clk 0:00:16.5]} 25... Qd4 {[%clk
0:00:05.3]} 26. Qe7 {[%clk 0:00:16.8]} 26... Rdd8 {[%clk 0:00:05]} 27. Rc7
{[%clk 0:00:16.4]} 27... Qd3 {[%clk 0:00:04]} 28. Qg7# {[%clk 0:00:16.1]} 1-0

[Event "Early-Titled-Tuesday-Blitz-March-19-2024"]
[Site "Chess.com"]
[Date "2024.03.19"]
[Round "11"]
[White "jefferyx"]
[Black "Sam_ChessMood"]
[Result "1-0"]
[WhiteElo "3095"]
[BlackElo "2948"]
[TimeControl "180+1"]
[EndTime "10:05:52 PDT"]
[Termination "jefferyx won on time"]

1. b4 {[%clk 0:03:00.9]} 1... e5 {[%clk 0:02:59]} 2. Bb2 {[%clk 0:02:58.7]} 2...
Bxb4 {[%clk 0:02:59]} 3. Bxe5 {[%clk 0:02:58.4]} 3... Nf6 {[%clk 0:02:59.4]} 4.
e3 {[%clk 0:02:54.1]} 4... O-O {[%clk 0:02:58.2]} 5. c3 {[%clk 0:02:51.7]} 5...
Ba5 {[%clk 0:02:42.6]} 6. Qa4 {[%clk 0:02:47.6]} 6... Nc6 {[%clk 0:02:33.6]} 7.
Bxf6 {[%clk 0:02:47.9]} 7... Qxf6 {[%clk 0:02:33.6]} 8. d4 {[%clk 0:02:48.4]}
8... Re8 {[%clk 0:02:21.9]} 9. Nf3 {[%clk 0:02:47.1]} 9... a6 {[%clk 0:01:58.9]}
10. Bd3 {[%clk 0:02:45.3]} 10... d5 {[%clk 0:01:49.4]} 11. O-O {[%clk
0:02:44.2]} 11... Bg4 {[%clk 0:01:27.5]} 12. Ne5 {[%clk 0:02:43.9]} 12... Rxe5
{[%clk 0:01:27.7]} 13. dxe5 {[%clk 0:02:39.9]} 13... Nxe5 {[%clk 0:01:28.6]} 14.
Qxa5 {[%clk 0:02:36.5]} 14... Nxd3 {[%clk 0:01:28.7]} 15. Qxd5 {[%clk
0:02:35.5]} 15... Be2 {[%clk 0:01:27.9]} 16. Qxb7 {[%clk 0:02:32.1]} 16... Re8
{[%clk 0:01:21.2]} 17. Nd2 {[%clk 0:02:27.7]} 17... Bxf1 {[%clk 0:01:20.4]} 18.
Rxf1 {[%clk 0:02:27.2]} 18... Qxc3 {[%clk 0:01:20.1]} 19. Nf3 {[%clk 0:02:24.5]}
19... c5 {[%clk 0:01:05.9]} 20. Qxa6 {[%clk 0:02:21.7]} 20... h6 {[%clk
0:01:06.3]} 21. a4 {[%clk 0:02:19.9]} 21... c4 {[%clk 0:01:03.9]} 22. a5 {[%clk
0:02:18.2]} 22... Qb4 {[%clk 0:00:54]} 23. Qc6 {[%clk 0:02:18.1]} 23... Re6
{[%clk 0:00:44.3]} 24. Qc8+ {[%clk 0:01:54.3]} 24... Kh7 {[%clk 0:00:44.6]} 25.
h3 {[%clk 0:01:44.7]} 25... Rf6 {[%clk 0:00:35.4]} 26. a6 {[%clk 0:01:42.6]}
26... Qa4 {[%clk 0:00:35.6]} 27. a7 {[%clk 0:01:39.3]} 27... Qxa7 {[%clk
0:00:20.1]} 28. Qxc4 {[%clk 0:01:39.6]} 28... Nc5 {[%clk 0:00:20.5]} 29. Ne5
{[%clk 0:01:31.8]} 29... Ne6 {[%clk 0:00:18.7]} 30. Rd1 {[%clk 0:01:27.6]} 30...
Qa5 {[%clk 0:00:05.3]} 31. Qe4+ {[%clk 0:01:17.4]} 31... Kg8 {[%clk 0:00:04.9]}
32. Rc1 {[%clk 0:01:12.7]} 32... Qd8 {[%clk 0:00:03.5]} 33. Qb7 {[%clk
0:01:04.4]} 33... Qd2 {[%clk 0:00:03]} 34. Rc8+ {[%clk 0:01:00.9]} 34... Kh7
{[%clk 0:00:03.4]} 35. Qe4+ {[%clk 0:00:59.9]} 35... g6 {[%clk 0:00:03.9]} 36.
Ng4 {[%clk 0:01:00]} 36... Rf5 {[%clk 0:00:03.5]} 37. Qa8 {[%clk 0:00:47.6]}
37... Qd1+ {[%clk 0:00:02.1]} 38. Kh2 {[%clk 0:00:47.7]} 38... Qd6+ {[%clk
0:00:02.9]} 39. f4 {[%clk 0:00:44.1]} 1-0

[Event "Early-Titled-Tuesday-Blitz-March-19-2024"]
[Site "Chess.com"]
[Date "2024.03.19"]
[Round "11"]
[White "Pragmatist237"]
[Black "zurzan"]
[Result "0-1"]
[WhiteElo "2180"]
[BlackElo "2074"]
[TimeControl "180+1"]
[EndTime "10:05:55 PDT"]
[Termination "zurzan won by resignation"]

1. e4 {[%clk 0:02:59.8]} 1... c5 {[%clk 0:02:59.1]} 2. Nf3 {[%clk 0:02:58.8]}
2... g6 {[%clk 0:02:59.4]} 3. d4 {[%clk 0:02:58.5]} 3... cxd4 {[%clk 0:03:00.3]}
4. Nxd4 {[%clk 0:02:58.9]} 4... Nf6 {[%clk 0:02:59.7]} 5. Nc3 {[%clk 0:02:53.4]}
5... Bg7 {[%clk 0:02:59.5]} 6. Be3 {[%clk 0:02:53.7]} 6... O-O {[%clk
0:02:59.1]} 7. Be2 {[%clk 0:02:43.2]} 7... Nc6 {[%clk 0:02:58.8]} 8. O-O {[%clk
0:02:41.7]} 8... Nxd4 {[%clk 0:02:57.3]} 9. Bxd4 {[%clk 0:02:42.6]} 9... a6
{[%clk 0:02:46]} 10. a4 {[%clk 0:02:35]} 10... d6 {[%clk 0:02:43.5]} 11. f4
{[%clk 0:02:32.3]} 11... Qa5 {[%clk 0:02:30.2]} 12. Kh1 {[%clk 0:02:25]} 12...
Bd7 {[%clk 0:02:27.8]} 13. Bxf6 {[%clk 0:01:57.7]} 13... Bxf6 {[%clk 0:02:23.8]}
14. e5 {[%clk 0:01:58.1]} 14... Bg7 {[%clk 0:02:14.4]} 15. Nd5 {[%clk
0:01:45.8]} 15... dxe5 {[%clk 0:01:56.1]} 16. Nxe7+ {[%clk 0:01:45.1]} 16... Kh8
{[%clk 0:01:56.3]} 17. Qxd7 {[%clk 0:01:44.1]} 17... exf4 {[%clk 0:01:48.5]} 18.
Qd5 {[%clk 0:01:18.5]} 18... Qb4 {[%clk 0:01:35.5]} 19. Nf5 {[%clk 0:01:02.6]}
19... gxf5 {[%clk 0:01:31.7]} 20. Qxf5 {[%clk 0:00:59]} 20... Rad8 {[%clk
0:01:00.8]} 21. Bd3 {[%clk 0:00:40.4]} 21... Rxd3 {[%clk 0:01:00.4]} 22. Qxd3
{[%clk 0:00:40.4]} 22... Qxb2 {[%clk 0:01:00.4]} 23. Rae1 {[%clk 0:00:36.5]}
23... Qb4 {[%clk 0:00:55.9]} 24. Re4 {[%clk 0:00:35.9]} 24... Qb6 {[%clk
0:00:41.6]} 25. Rexf4 {[%clk 0:00:34.5]} 25... Qe6 {[%clk 0:00:40.7]} 26. Qf3
{[%clk 0:00:29.8]} 26... f6 {[%clk 0:00:38.7]} 27. Qxb7 {[%clk 0:00:29.8]} 27...
Rf7 {[%clk 0:00:37.3]} 28. Qa8+ {[%clk 0:00:27.9]} 28... Rf8 {[%clk 0:00:37.2]}
29. Qe4 {[%clk 0:00:28.2]} 29... Qc8 {[%clk 0:00:31.9]} 30. Rh4 {[%clk
0:00:27.8]} 30... h6 {[%clk 0:00:31.3]} 31. Rg4 {[%clk 0:00:24.3]} 31... f5
{[%clk 0:00:30.6]} 32. Qc4 {[%clk 0:00:09.3]} 32... fxg4 {[%clk 0:00:30.4]} 33.
Qxc8 {[%clk 0:00:07.4]} 33... Rxc8 {[%clk 0:00:28.4]} 34. Rf7 {[%clk 0:00:08.3]}
0-1

[Event "Early-Titled-Tuesday-Blitz-March-19-2024"]
[Site "Chess.com"]
[Date "2024.03.19"]
[Round "11"]
[White "KhazhatulyAlikhan"]
[Black "LornerAcosta"]
[Result "0-1"]
[WhiteElo "2473"]
[BlackElo "2621"]
[TimeControl "180+1"]
[EndTime "10:05:57 PDT"]
[Termination "LornerAcosta won by checkmate"]

1. e4 {[%clk 0:02:59.2]} 1... c5 {[%clk 0:02:59.9]} 2. Nf3 {[%clk 0:02:57.3]}
2... Nc6 {[%clk 0:03:00.5]} 3. d4 {[%clk 0:02:55.4]} 3... cxd4 {[%clk
0:03:00.7]} 4. Nxd4 {[%clk 0:02:56.3]} 4... Nf6 {[%clk 0:03:01.5]} 5. Nc3 {[%clk
0:02:56]} 5... e6 {[%clk 0:03:01.6]} 6. Ndb5 {[%clk 0:02:43.3]} 6... Bb4 {[%clk
0:03:01]} 7. Bf4 {[%clk 0:02:31.1]} 7... Nxe4 {[%clk 0:02:57.1]} 8. Nc7+ {[%clk
0:02:14.2]} 8... Ke7 {[%clk 0:02:47.9]} 9. Qd3 {[%clk 0:01:56.4]} 9... d5 {[%clk
0:02:31.8]} 10. Nxa8 {[%clk 0:01:52.4]} 10... Qa5 {[%clk 0:02:19.3]} 11. Be2
{[%clk 0:01:23.8]} 11... e5 {[%clk 0:00:54.3]} 12. Bd2 {[%clk 0:00:22.4]} 12...
Nxd2 {[%clk 0:00:51.3]} 13. Qxd2 {[%clk 0:00:23.3]} 13... d4 {[%clk 0:00:47]}
14. Nd5+ {[%clk 0:00:17]} 14... Qxd5 {[%clk 0:00:45.7]} 15. c3 {[%clk
0:00:17.9]} 15... dxc3 {[%clk 0:00:43.4]} 16. bxc3 {[%clk 0:00:16.1]} 16...
Qxd2+ {[%clk 0:00:34.7]} 17. Kxd2 {[%clk 0:00:16.9]} 17... Rd8+ {[%clk
0:00:34.7]} 18. Kc2 {[%clk 0:00:04.9]} 18... Bf5+ {[%clk 0:00:33.4]} 19. Kb2
{[%clk 0:00:05.7]} 19... Rd2+ {[%clk 0:00:20.6]} 20. Kb3 {[%clk 0:00:06.4]}
20... Bd6 {[%clk 0:00:14.5]} 21. Bd1 {[%clk 0:00:02.8]} 21... b5 {[%clk
0:00:12.1]} 22. a4 {[%clk 0:00:02]} 22... Be6+ {[%clk 0:00:12.4]} 23. c4 {[%clk
0:00:02.1]} 23... Bxc4+ {[%clk 0:00:13.1]} 24. Kc3 {[%clk 0:00:02.7]} 24... Bb4#
{[%clk 0:00:13.8]} 0-1